[Event "*** Titled Tuesday Blitz"]
[Site "Chess.com"]
[Date "2021.02.02"]
[Round "7"]
[White "davigator"]
[Black "Pintacara"]
[Result "1-0"]
[WhiteElo "2341"]
[BlackElo "2483"]
[TimeControl "180+1"]
[EndTime "11:19:02 PST"]
[Termination "davigator won by resignation"]

1. e4 {[%clk 0:03:00.9]} 1... c5 {[%clk 0:02:58.8]} 2. Nf3 {[%clk 0:02:58.8]}
2... e6 {[%clk 0:02:59.3]} 3. d4 {[%clk 0:02:55.5]} 3... cxd4 {[%clk 0:03:00.2]}
4. Nxd4 {[%clk 0:02:53.8]} 4... a6 {[%clk 0:02:46.4]} 5. g3 {[%clk 0:02:52.8]}
5... Nc6 {[%clk 0:02:32.2]} 6. Bg2 {[%clk 0:02:50.2]} 6... Qc7 {[%clk
0:02:32.1]} 7. O-O {[%clk 0:02:49.5]} 7... Nf6 {[%clk 0:02:32.2]} 8. Nc3 {[%clk
0:02:45]} 8... h5 {[%clk 0:02:32.3]} 9. Nxc6 {[%clk 0:02:29.8]} 9... dxc6 {[%clk
0:02:32.2]} 10. Bg5 {[%clk 0:02:24.5]} 10... e5 {[%clk 0:02:29.1]} 11. h3 {[%clk
0:02:21.8]} 11... Be6 {[%clk 0:02:24.2]} 12. a4 {[%clk 0:02:16.7]} 12... Rd8
{[%clk 0:02:19.2]} 13. Qe2 {[%clk 0:02:14.1]} 13... b5 {[%clk 0:02:19.5]} 14.
axb5 {[%clk 0:02:13]} 14... axb5 {[%clk 0:02:20.4]} 15. Qe3 {[%clk 0:02:11.3]}
15... Be7 {[%clk 0:01:46.4]} 16. Ra7 {[%clk 0:02:09.8]} 16... Qb8 {[%clk
0:01:46.8]} 17. Rfa1 {[%clk 0:02:09.3]} 17... c5 {[%clk 0:01:24.5]} 18. Bxf6
{[%clk 0:02:01.7]} 18... gxf6 {[%clk 0:01:22.3]} 19. Nd5 {[%clk 0:02:01.4]}
19... Bxd5 {[%clk 0:01:20.1]} 20. exd5 {[%clk 0:02:02.3]} 20... Bd6 {[%clk
0:01:13.9]} 21. Qf3 {[%clk 0:01:59]} 21... Rh6 {[%clk 0:01:05.7]} 22. h4 {[%clk
0:01:53.8]} 22... Kf8 {[%clk 0:01:03.8]} 23. Qe3 {[%clk 0:01:51.1]} 23... Kg7
{[%clk 0:01:03.1]} 24. Bh3 {[%clk 0:01:47.6]} 24... Bc7 {[%clk 0:00:57.5]} 25.
Be6 {[%clk 0:01:38.2]} 25... fxe6 {[%clk 0:00:33.9]} 26. Qxc5 {[%clk 0:01:37.8]}
26... Rc8 {[%clk 0:00:34]} 27. Qe7+ {[%clk 0:01:37]} 27... Kh8 {[%clk
0:00:33.7]} 28. d6 {[%clk 0:01:27.7]} 28... Rh7 {[%clk 0:00:17.9]} 29. Qxf6+
{[%clk 0:01:26.3]} 29... Kg8 {[%clk 0:00:18.3]} 30. Qxe6+ {[%clk 0:01:25.1]}
30... Kf8 {[%clk 0:00:18.1]} 31. dxc7 {[%clk 0:01:16.1]} 31... Rhxc7 {[%clk
0:00:18]} 32. Qh6+ {[%clk 0:01:11]} 32... Kg8 {[%clk 0:00:17.7]} 33. Qg5+ {[%clk
0:01:10]} 33... Kf8 {[%clk 0:00:17.3]} 34. Qf5+ {[%clk 0:01:00.8]} 34... Kg8
{[%clk 0:00:16.5]} 35. R7a6 {[%clk 0:00:54.1]} 35... Rf7 {[%clk 0:00:14.4]} 36.
Rg6+ {[%clk 0:00:51]} 36... Kf8 {[%clk 0:00:14.5]} 37. Qxh5 {[%clk 0:00:49.5]}
37... Ke7 {[%clk 0:00:10.5]} 38. Qg5+ {[%clk 0:00:47.9]} 38... Kd7 {[%clk
0:00:09.1]} 39. Qg4+ {[%clk 0:00:44.4]} 39... Ke7 {[%clk 0:00:08.8]} 40. Qe6+
{[%clk 0:00:44.2]} 40... Kf8 {[%clk 0:00:08.7]} 41. Qg4 {[%clk 0:00:39.4]} 41...
Qc7 {[%clk 0:00:08.6]} 42. Rg8+ {[%clk 0:00:38]} 42... Ke7 {[%clk 0:00:08.9]}
43. Rxc8 {[%clk 0:00:38.1]} 1-0

[Event "*** Titled Tuesday Blitz"]
[Site "Chess.com"]
[Date "2021.02.02"]
[Round "7"]
[White "Beca95"]
[Black "vinniethepooh"]
[Result "1-0"]
[WhiteElo "2894"]
[BlackElo "2725"]
[TimeControl "180+1"]
[EndTime "11:19:07 PST"]
[Termination "Beca95 won on time"]

1. d4 {[%clk 0:03:00.9]} 1... Nf6 {[%clk 0:03:00.1]} 2. c4 {[%clk 0:03:00.9]}
2... c6 {[%clk 0:03:00.6]} 3. Nc3 {[%clk 0:02:59.7]} 3... d5 {[%clk 0:03:01.1]}
4. Nf3 {[%clk 0:03:00.1]} 4... e6 {[%clk 0:03:01.3]} 5. Qd3 {[%clk 0:02:59.4]}
5... dxc4 {[%clk 0:02:57.8]} 6. Qxc4 {[%clk 0:03:00.3]} 6... b5 {[%clk
0:02:58.4]} 7. Qd3 {[%clk 0:03:00]} 7... Bb7 {[%clk 0:02:58.3]} 8. g4 {[%clk
0:02:54.4]} 8... b4 {[%clk 0:02:51.3]} 9. Na4 {[%clk 0:02:54]} 9... c5 {[%clk
0:02:46.3]} 10. g5 {[%clk 0:02:51.1]} 10... Ne4 {[%clk 0:02:29.6]} 11. Ne5
{[%clk 0:02:34.6]} 11... Qa5 {[%clk 0:02:08]} 12. b3 {[%clk 0:02:19.5]} 12...
Nxf2 {[%clk 0:01:41.9]} 13. Kxf2 {[%clk 0:02:19]} 13... Bxh1 {[%clk 0:01:41.5]}
14. e4 {[%clk 0:02:19.3]} 14... cxd4 {[%clk 0:01:07.4]} 15. Bf4 {[%clk
0:02:18.9]} 15... f6 {[%clk 0:01:06.5]} 16. gxf6 {[%clk 0:01:56.5]} 16... gxf6
{[%clk 0:01:06.2]} 17. Ng4 {[%clk 0:01:56.6]} 17... Nd7 {[%clk 0:00:59.3]} 18.
Qb5 {[%clk 0:01:47.9]} 18... Qd8 {[%clk 0:00:41.9]} 19. Bd3 {[%clk 0:01:20.6]}
19... f5 {[%clk 0:00:41.3]} 20. exf5 {[%clk 0:01:18]} 20... Qh4+ {[%clk
0:00:39.4]} 21. Bg3 {[%clk 0:01:16.3]} 21... Qxg4 {[%clk 0:00:35.8]} 22. Rxh1
{[%clk 0:01:15.3]} 22... Bh6 {[%clk 0:00:32.6]} 23. Kg2 {[%clk 0:01:05.3]} 23...
Rd8 {[%clk 0:00:12.2]} 24. Nc5 {[%clk 0:00:57.6]} 24... Be3 {[%clk 0:00:04.3]}
25. Nxe6 {[%clk 0:00:34.6]} 25... h5 {[%clk 0:00:04.7]} 26. h3 {[%clk
0:00:23.5]} 26... Qg8 {[%clk 0:00:04.9]} 27. Kh2 {[%clk 0:00:21.3]} 27... h4
{[%clk 0:00:04.2]} 28. Bd6 {[%clk 0:00:21.1]} 28... Kf7 {[%clk 0:00:02.4]} 29.
Nxd8+ {[%clk 0:00:15]} 29... Kf6 {[%clk 0:00:02.9]} 30. Qxd7 {[%clk 0:00:12.3]}
30... Bf2 {[%clk 0:00:02]} 31. Be7+ {[%clk 0:00:10.9]} 1-0

[Event "*** Titled Tuesday Blitz"]
[Site "Chess.com"]
[Date "2021.02.02"]
[Round "7"]
[White "Grineva_Marianna"]
[Black "cstevens1"]
[Result "0-1"]
[WhiteElo "2237"]
[BlackElo "2664"]
[TimeControl "180+1"]
[EndTime "11:19:07 PST"]
[Termination "cstevens1 won by resignation"]

1. e4 {[%clk 0:03:00.9]} 1... c5 {[%clk 0:02:55]} 2. Nf3 {[%clk 0:03:00.4]} 2...
e6 {[%clk 0:02:54.7]} 3. d4 {[%clk 0:03:00.8]} 3... cxd4 {[%clk 0:02:54.9]} 4.
Nxd4 {[%clk 0:03:01.4]} 4... a6 {[%clk 0:02:55.1]} 5. Bd3 {[%clk 0:03:00.3]}
5... Bc5 {[%clk 0:02:54.4]} 6. Nb3 {[%clk 0:03:00.3]} 6... Be7 {[%clk
0:02:54.7]} 7. Qg4 {[%clk 0:03:00.3]} 7... g6 {[%clk 0:02:54.4]} 8. Qe2 {[%clk
0:03:00.6]} 8... Qc7 {[%clk 0:02:54.7]} 9. c4 {[%clk 0:02:56.1]} 9... Nc6 {[%clk
0:02:54.1]} 10. O-O {[%clk 0:02:52.7]} 10... Ne5 {[%clk 0:02:53.9]} 11. Bf4
{[%clk 0:02:34]} 11... d6 {[%clk 0:02:53.5]} 12. Nc3 {[%clk 0:02:27.3]} 12...
Nf6 {[%clk 0:02:52.7]} 13. Bh6 {[%clk 0:02:24.6]} 13... Nfg4 {[%clk 0:02:44.9]}
14. Bf4 {[%clk 0:02:21]} 14... O-O {[%clk 0:02:42.1]} 15. h3 {[%clk 0:02:20.9]}
15... Nf6 {[%clk 0:02:42.5]} 16. Bh6 {[%clk 0:02:20.4]} 16... Re8 {[%clk
0:02:41.9]} 17. f4 {[%clk 0:02:20.6]} 17... Nxd3 {[%clk 0:02:41.9]} 18. Qxd3
{[%clk 0:02:21.1]} 18... Bd7 {[%clk 0:02:39.2]} 19. Rae1 {[%clk 0:02:09.7]}
19... Rad8 {[%clk 0:02:32.1]} 20. f5 {[%clk 0:01:59.5]} 20... b5 {[%clk
0:02:09.7]} 21. cxb5 {[%clk 0:01:52]} 21... axb5 {[%clk 0:02:09.9]} 22. fxg6
{[%clk 0:01:28.8]} 22... fxg6 {[%clk 0:02:06.1]} 23. Qd4 {[%clk 0:01:25.3]}
23... Qc4 {[%clk 0:01:48.3]} 24. Rf2 {[%clk 0:00:33.5]} 24... Qxd4 {[%clk
0:01:44.3]} 25. Nxd4 {[%clk 0:00:33.4]} 25... b4 {[%clk 0:01:45.2]} 26. Ncb5
{[%clk 0:00:21.7]} 26... e5 {[%clk 0:01:44.1]} 27. Bg5 {[%clk 0:00:12.4]} 27...
exd4 {[%clk 0:01:41]} 28. Nc7 {[%clk 0:00:08.1]} 28... Rf8 {[%clk 0:01:38.4]}
29. Bxf6 {[%clk 0:00:04.3]} 29... Bxf6 {[%clk 0:01:35]} 30. Nd5 {[%clk
0:00:04.6]} 30... Bh4 {[%clk 0:01:33.4]} 31. Rxf8+ {[%clk 0:00:04.3]} 31... Rxf8
{[%clk 0:01:33.9]} 32. Rc1 {[%clk 0:00:04.1]} 32... Be6 {[%clk 0:01:29.1]} 33.
Rd1 {[%clk 0:00:02.7]} 33... Bxd5 {[%clk 0:01:27.8]} 34. exd5 {[%clk 0:00:03.6]}
34... Bf2+ {[%clk 0:01:27.9]} 35. Kh2 {[%clk 0:00:04.1]} 35... Be3 {[%clk
0:01:28.8]} 36. Rd3 {[%clk 0:00:03.1]} 36... Ra8 {[%clk 0:01:23.1]} 37. Rb3
{[%clk 0:00:03.5]} 37... Rxa2 {[%clk 0:01:21.5]} 38. Rxb4 {[%clk 0:00:03.9]}
38... Kg7 {[%clk 0:01:22.4]} 39. Rb6 {[%clk 0:00:03.5]} 39... d3 {[%clk
0:01:19.8]} 40. Rb7+ {[%clk 0:00:03.8]} 40... Kf6 {[%clk 0:01:19.7]} 41. Rb3
{[%clk 0:00:04.4]} 41... d2 {[%clk 0:01:19.6]} 42. Rd3 {[%clk 0:00:04.3]} 42...
Rxb2 {[%clk 0:01:19.6]} 43. Kg3 {[%clk 0:00:04.3]} 43... Rb1 {[%clk 0:01:19.8]}
44. Kf3 {[%clk 0:00:04.7]} 44... d1=Q+ {[%clk 0:01:20]} 45. Rxd1 {[%clk
0:00:04]} 45... Rxd1 {[%clk 0:01:20.9]} 46. Kxe3 {[%clk 0:00:04.5]} 46... Rxd5
{[%clk 0:01:21.7]} 47. Ke4 {[%clk 0:00:05.4]} 47... Ra5 {[%clk 0:01:21.9]} 48.
g4 {[%clk 0:00:05.9]} 48... Ke6 {[%clk 0:01:21.8]} 49. Kf4 {[%clk 0:00:05.9]}
49... Ra4+ {[%clk 0:01:22.7]} 50. Kg5 {[%clk 0:00:05.6]} 50... d5 {[%clk
0:01:22.6]} 51. Kh6 {[%clk 0:00:06.1]} 51... Ra7 {[%clk 0:01:23.5]} 52. h4
{[%clk 0:00:05]} 52... Ke5 {[%clk 0:01:24.4]} 53. g5 {[%clk 0:00:05.4]} 53...
Kf5 {[%clk 0:01:15.5]} 54. h5 {[%clk 0:00:03.4]} 54... gxh5 {[%clk 0:01:12.8]}
55. Kxh5 {[%clk 0:00:04.3]} 55... Rg7 {[%clk 0:01:10.7]} 56. Kh6 {[%clk
0:00:03.9]} 56... Rxg5 {[%clk 0:01:10.3]} 57. Kxh7 {[%clk 0:00:03.8]} 57... Kf6
{[%clk 0:01:10.8]} 0-1

[Event "*** Titled Tuesday Blitz"]
[Site "Chess.com"]
[Date "2021.02.02"]
[Round "7"]
[White "Goryachkina"]
[Black "PriSachu"]
[Result "0-1"]
[WhiteElo "2647"]
[BlackElo "2495"]
[TimeControl "180+1"]
[EndTime "11:19:10 PST"]
[Termination "PriSachu won on time"]

1. e4 {[%clk 0:02:59.6]} 1... e5 {[%clk 0:02:59.3]} 2. Nf3 {[%clk 0:02:59.2]}
2... Nc6 {[%clk 0:02:59.2]} 3. d4 {[%clk 0:02:57.6]} 3... exd4 {[%clk 0:02:58]}
4. Nxd4 {[%clk 0:02:57.7]} 4... Qf6 {[%clk 0:02:57.6]} 5. Be3 {[%clk 0:02:52.3]}
5... Bc5 {[%clk 0:02:55.5]} 6. c3 {[%clk 0:02:51.8]} 6... Nge7 {[%clk
0:02:47.7]} 7. Bc4 {[%clk 0:02:51.2]} 7... b6 {[%clk 0:02:42.2]} 8. O-O {[%clk
0:02:50.2]} 8... Bb7 {[%clk 0:02:41.1]} 9. Qd2 {[%clk 0:02:42]} 9... O-O-O
{[%clk 0:02:33.5]} 10. b4 {[%clk 0:02:34.5]} 10... d5 {[%clk 0:01:38.3]} 11.
bxc5 {[%clk 0:02:01.1]} 11... dxc4 {[%clk 0:01:36.3]} 12. cxb6 {[%clk
0:01:59.2]} 12... axb6 {[%clk 0:01:33.1]} 13. a4 {[%clk 0:01:55.4]} 13... Na5
{[%clk 0:01:26.5]} 14. Bg5 {[%clk 0:01:38.2]} 14... Qd6 {[%clk 0:01:22.7]} 15.
Qe3 {[%clk 0:01:25.8]} 15... h6 {[%clk 0:01:10]} 16. Bf4 {[%clk 0:01:10]} 16...
Qg6 {[%clk 0:01:09.2]} 17. f3 {[%clk 0:01:07.8]} 17... Rhe8 {[%clk 0:01:07.3]}
18. Qf2 {[%clk 0:01:04.6]} 18... f5 {[%clk 0:01:03.1]} 19. exf5 {[%clk
0:00:48.3]} 19... Nxf5 {[%clk 0:01:00.8]} 20. Nb5 {[%clk 0:00:43.3]} 20... Re7
{[%clk 0:00:28.6]} 21. Ra2 {[%clk 0:00:38.3]} 21... Nb3 {[%clk 0:00:21.7]} 22.
N1a3 {[%clk 0:00:35.9]} 22... Qe6 {[%clk 0:00:15.1]} 23. Nc2 {[%clk 0:00:22.3]}
23... g5 {[%clk 0:00:15]} 24. Bg3 {[%clk 0:00:16.3]} 24... Nxg3 {[%clk
0:00:14.7]} 25. Qxg3 {[%clk 0:00:14.9]} 25... Qe5 {[%clk 0:00:15.2]} 26. Qxe5
{[%clk 0:00:11.6]} 26... Rxe5 {[%clk 0:00:16.1]} 27. Ncd4 {[%clk 0:00:11.2]}
27... Re3 {[%clk 0:00:14.5]} 28. Rc2 {[%clk 0:00:07.1]} 28... c6 {[%clk
0:00:12.6]} 29. Na7+ {[%clk 0:00:02.6]} 29... Kc7 {[%clk 0:00:13]} 30. Kf2
{[%clk 0:00:02.4]} 30... Nxd4 {[%clk 0:00:12.8]} 31. cxd4 {[%clk 0:00:01.8]}
31... Rd3 {[%clk 0:00:11.6]} 0-1

[Event "*** Titled Tuesday Blitz"]
[Site "Chess.com"]
[Date "2021.02.02"]
[Round "7"]
[White "milenapn"]
[Black "JoachimMouhamad"]
[Result "0-1"]
[WhiteElo "2039"]
[BlackElo "2308"]
[TimeControl "180+1"]
[EndTime "11:19:10 PST"]
[Termination "JoachimMouhamad won by resignation"]

1. e4 {[%clk 0:02:24.4]} 1... e5 {[%clk 0:02:59.2]} 2. Nf3 {[%clk 0:02:23.3]}
2... Nc6 {[%clk 0:02:59.6]} 3. Bb5 {[%clk 0:02:21.9]} 3... a6 {[%clk 0:02:59.6]}
4. Ba4 {[%clk 0:02:20.5]} 4... Nf6 {[%clk 0:02:59.2]} 5. d3 {[%clk 0:02:19]}
5... b5 {[%clk 0:02:58.8]} 6. Bb3 {[%clk 0:02:16.9]} 6... Be7 {[%clk 0:02:59.3]}
7. O-O {[%clk 0:02:11.5]} 7... O-O {[%clk 0:02:59.3]} 8. c3 {[%clk 0:02:08.4]}
8... h6 {[%clk 0:02:50.4]} 9. Nbd2 {[%clk 0:02:00]} 9... Re8 {[%clk 0:02:50.7]}
10. Re1 {[%clk 0:01:56.2]} 10... Bf8 {[%clk 0:02:49]} 11. d4 {[%clk 0:01:54.8]}
11... d6 {[%clk 0:02:46.4]} 12. h3 {[%clk 0:01:48.4]} 12... Na5 {[%clk
0:02:42.2]} 13. Bc2 {[%clk 0:01:48.5]} 13... c5 {[%clk 0:02:42.4]} 14. Nf1
{[%clk 0:01:46.4]} 14... cxd4 {[%clk 0:02:38.7]} 15. cxd4 {[%clk 0:01:47.3]}
15... Nc6 {[%clk 0:02:39.1]} 16. d5 {[%clk 0:01:44.6]} 16... Ne7 {[%clk
0:02:34.7]} 17. Ng3 {[%clk 0:01:44.4]} 17... g6 {[%clk 0:02:27.6]} 18. Be3
{[%clk 0:01:41]} 18... Bg7 {[%clk 0:02:26.6]} 19. Qd2 {[%clk 0:01:41]} 19... Kh7
{[%clk 0:02:25.8]} 20. Nh2 {[%clk 0:01:40.6]} 20... Bb7 {[%clk 0:02:16.7]} 21.
f4 {[%clk 0:01:36.5]} 21... exf4 {[%clk 0:02:12.8]} 22. Bxf4 {[%clk 0:01:37.4]}
22... Rc8 {[%clk 0:02:07.7]} 23. Rac1 {[%clk 0:01:29.7]} 23... Nd7 {[%clk
0:02:05.3]} 24. Bb1 {[%clk 0:01:28.2]} 24... Rxc1 {[%clk 0:02:02]} 25. Rxc1
{[%clk 0:01:27.5]} 25... Ne5 {[%clk 0:02:01.6]} 26. b3 {[%clk 0:01:19.8]} 26...
Qd7 {[%clk 0:01:45.6]} 27. Ngf1 {[%clk 0:00:58.2]} 27... Kg8 {[%clk 0:01:33.4]}
28. Bxh6 {[%clk 0:00:54.7]} 28... Rc8 {[%clk 0:01:18.5]} 29. Rxc8+ {[%clk
0:00:52.4]} 29... Bxc8 {[%clk 0:01:19.4]} 30. Bxg7 {[%clk 0:00:51.5]} 30... Kxg7
{[%clk 0:01:19.8]} 31. Ne3 {[%clk 0:00:51.7]} 31... Qc7 {[%clk 0:01:14.9]} 32.
h4 {[%clk 0:00:23.1]} 32... Ng8 {[%clk 0:01:07.9]} 33. h5 {[%clk 0:00:20.4]}
33... gxh5 {[%clk 0:01:06.8]} 34. Bc2 {[%clk 0:00:14.6]} 34... Nf6 {[%clk
0:01:02.9]} 35. Nf3 {[%clk 0:00:09.3]} 35... Nxf3+ {[%clk 0:00:59.5]} 36. gxf3
{[%clk 0:00:10.2]} 36... Qc5 {[%clk 0:00:56]} 37. Kf2 {[%clk 0:00:10.3]} 37...
h4 {[%clk 0:00:49.4]} 38. Kg2 {[%clk 0:00:08.1]} 38... h3+ {[%clk 0:00:49.5]}
39. Kh2 {[%clk 0:00:08.3]} 39... a5 {[%clk 0:00:38.9]} 40. f4 {[%clk 0:00:08.5]}
40... Qxe3 {[%clk 0:00:30.3]} 41. Qxe3 {[%clk 0:00:06.1]} 41... Ng4+ {[%clk
0:00:30.3]} 0-1

[Event "*** Titled Tuesday Blitz"]
[Site "Chess.com"]
[Date "2021.02.02"]
[Round "7"]
[White "Grandmaster2B"]
[Black "zacachess"]
[Result "1/2-1/2"]
[WhiteElo "2586"]
[BlackElo "2437"]
[TimeControl "180+1"]
[EndTime "11:19:11 PST"]
[Termination "Game drawn by repetition"]

1. e4 {[%clk 0:03:00.9]} 1... c5 {[%clk 0:02:59.1]} 2. Nf3 {[%clk 0:03:00.4]}
2... d6 {[%clk 0:02:59.3]} 3. d4 {[%clk 0:03:01]} 3... cxd4 {[%clk 0:03:00.2]}
4. Nxd4 {[%clk 0:03:01.8]} 4... Nf6 {[%clk 0:03:00.7]} 5. Nc3 {[%clk 0:03:02.2]}
5... a6 {[%clk 0:03:01]} 6. f3 {[%clk 0:03:02.6]} 6... e5 {[%clk 0:03:00.9]} 7.
Nb3 {[%clk 0:03:03.1]} 7... Be7 {[%clk 0:03:01.4]} 8. Be3 {[%clk 0:03:03.1]}
8... O-O {[%clk 0:03:01.2]} 9. Qd2 {[%clk 0:03:03.7]} 9... Be6 {[%clk
0:03:01.8]} 10. O-O-O {[%clk 0:03:04.1]} 10... a5 {[%clk 0:03:02.3]} 11. Kb1
{[%clk 0:03:03.8]} 11... a4 {[%clk 0:03:02]} 12. Nc1 {[%clk 0:03:04.4]} 12... a3
{[%clk 0:03:02.5]} 13. b3 {[%clk 0:03:04.7]} 13... Ra5 {[%clk 0:03:03.1]} 14. g4
{[%clk 0:03:05.2]} 14... d5 {[%clk 0:03:02.9]} 15. g5 {[%clk 0:03:05.2]} 15...
d4 {[%clk 0:03:03.1]} 16. gxf6 {[%clk 0:03:04.3]} 16... Bxf6 {[%clk 0:03:03.4]}
17. Qe1 {[%clk 0:03:03.9]} 17... Nd7 {[%clk 0:02:33.5]} 18. Bd2 {[%clk
0:02:56.1]} 18... dxc3 {[%clk 0:02:32.5]} 19. Bxc3 {[%clk 0:02:57]} 19... Ra8
{[%clk 0:02:27.1]} 20. Bb5 {[%clk 0:02:53.3]} 20... Qc7 {[%clk 0:02:22.8]} 21.
Bb4 {[%clk 0:02:49.9]} 21... Rfc8 {[%clk 0:02:21.5]} 22. Qd2 {[%clk 0:02:47.2]}
22... Bg5 {[%clk 0:02:00.3]} 23. Qe2 {[%clk 0:02:36.6]} 23... Nf6 {[%clk
0:01:56.5]} 24. c4 {[%clk 0:02:26.1]} 24... Nh5 {[%clk 0:01:51.4]} 25. Bd6
{[%clk 0:02:18]} 25... Qb6 {[%clk 0:01:46]} 26. Bxe5 {[%clk 0:02:16.3]} 26...
Nf4 {[%clk 0:01:40.1]} 27. Qd2 {[%clk 0:01:56.5]} 27... Nh3 {[%clk 0:01:39.3]}
28. f4 {[%clk 0:01:54.4]} 28... Bh6 {[%clk 0:01:39.4]} 29. Bd4 {[%clk
0:01:38.6]} 29... Qc7 {[%clk 0:01:30.4]} 30. Be5 {[%clk 0:01:33.5]} 30... Qxe5
{[%clk 0:01:19.8]} 31. fxe5 {[%clk 0:01:29.2]} 31... Bxd2 {[%clk 0:01:20.7]} 32.
Rxd2 {[%clk 0:01:29.8]} 32... Ng5 {[%clk 0:01:09.7]} 33. Re2 {[%clk 0:00:52.2]}
33... Rd8 {[%clk 0:01:07.2]} 34. Rf1 {[%clk 0:00:45]} 34... Rd4 {[%clk
0:01:03.7]} 35. Rf4 {[%clk 0:00:44.9]} 35... Rad8 {[%clk 0:00:27.9]} 36. c5
{[%clk 0:00:22.2]} 36... Nh3 {[%clk 0:00:27.4]} 37. Rh4 {[%clk 0:00:19.3]} 37...
Ng5 {[%clk 0:00:26.5]} 38. Kc2 {[%clk 0:00:17.6]} 38... Nf3 {[%clk 0:00:26.4]}
39. Rf4 {[%clk 0:00:13.7]} 39... Nxe5 {[%clk 0:00:26.7]} 40. Rff2 {[%clk
0:00:09.2]} 40... Ng4 {[%clk 0:00:26.3]} 41. Rf3 {[%clk 0:00:05.9]} 41... Ne5
{[%clk 0:00:25.6]} 42. Rff2 {[%clk 0:00:06.1]} 42... Ng4 {[%clk 0:00:25.7]} 43.
Rf3 {[%clk 0:00:06.6]} 43... Ne5 {[%clk 0:00:25.9]} 44. Rff2 {[%clk 0:00:06.7]}
1/2-1/2

[Event "*** Titled Tuesday Blitz"]
[Site "Chess.com"]
[Date "2021.02.02"]
[Round "7"]
[White "Natalya_Buksa"]
[Black "MF1966Idrisov"]
[Result "1-0"]
[WhiteElo "2556"]
[BlackElo "2392"]
[TimeControl "180+1"]
[EndTime "11:19:12 PST"]
[Termination "Natalya_Buksa won on time"]

1. d4 {[%clk 0:03:00.9]} 1... d5 {[%clk 0:02:58.6]} 2. Nc3 {[%clk 0:02:58.5]}
2... Nf6 {[%clk 0:02:51.4]} 3. Bf4 {[%clk 0:02:58.9]} 3... c6 {[%clk 0:02:49.5]}
4. e3 {[%clk 0:02:59]} 4... Bf5 {[%clk 0:02:49.1]} 5. Nf3 {[%clk 0:02:59.5]}
5... e6 {[%clk 0:02:49.3]} 6. Ne5 {[%clk 0:03:00]} 6... Nbd7 {[%clk 0:02:47.9]}
7. g4 {[%clk 0:03:00.4]} 7... Bg6 {[%clk 0:02:47.1]} 8. h4 {[%clk 0:03:00.5]}
8... h5 {[%clk 0:02:40.3]} 9. Nxg6 {[%clk 0:03:00.3]} 9... fxg6 {[%clk
0:02:40.6]} 10. Bd3 {[%clk 0:03:00.4]} 10... Kf7 {[%clk 0:02:37]} 11. g5 {[%clk
0:02:59.1]} 11... Ne8 {[%clk 0:02:35.9]} 12. Qf3 {[%clk 0:02:58.6]} 12... Ke7
{[%clk 0:02:17.2]} 13. Bxg6 {[%clk 0:02:56.1]} 13... Nd6 {[%clk 0:02:17.2]} 14.
O-O-O {[%clk 0:02:48.5]} 14... Nb6 {[%clk 0:02:15.2]} 15. e4 {[%clk 0:02:44.7]}
15... Kd7 {[%clk 0:02:05.3]} 16. Bxd6 {[%clk 0:02:43.5]} 16... Bxd6 {[%clk
0:02:02.4]} 17. exd5 {[%clk 0:02:38.5]} 17... cxd5 {[%clk 0:02:01.6]} 18. Bxh5
{[%clk 0:02:34.7]} 18... Nc4 {[%clk 0:01:52.9]} 19. Bg4 {[%clk 0:02:18]} 19...
Qb6 {[%clk 0:01:45]} 20. Na4 {[%clk 0:02:17.9]} 20... Qa6 {[%clk 0:01:35.9]} 21.
Qb3 {[%clk 0:01:55.1]} 21... b5 {[%clk 0:01:28]} 22. Nc5+ {[%clk 0:01:55.2]}
22... Bxc5 {[%clk 0:01:24.2]} 23. dxc5 {[%clk 0:01:56.1]} 23... Kc7 {[%clk
0:01:18.2]} 24. Rhe1 {[%clk 0:01:52.8]} 24... Rae8 {[%clk 0:01:16.8]} 25. h5
{[%clk 0:01:44.8]} 25... Rhf8 {[%clk 0:01:12.8]} 26. Kb1 {[%clk 0:01:42.9]}
26... Qc6 {[%clk 0:01:05]} 27. h6 {[%clk 0:01:40.8]} 27... gxh6 {[%clk
0:01:03.8]} 28. gxh6 {[%clk 0:01:41.7]} 28... Qxc5 {[%clk 0:01:01.3]} 29. Qg3+
{[%clk 0:01:24.9]} 29... e5 {[%clk 0:00:59]} 30. h7 {[%clk 0:01:20.2]} 30... Re7
{[%clk 0:00:38.8]} 31. Rh1 {[%clk 0:01:04.3]} 31... Qb4 {[%clk 0:00:35.5]} 32.
b3 {[%clk 0:00:55.5]} 32... Nd2+ {[%clk 0:00:23.4]} 33. Kb2 {[%clk 0:00:55.3]}
33... Ne4 {[%clk 0:00:23.5]} 34. Qe3 {[%clk 0:00:52.7]} 34... Nxf2 {[%clk
0:00:20.5]} 35. Qxa7+ {[%clk 0:00:19.8]} 35... Kc6 {[%clk 0:00:20.4]} 36. Rh6+
{[%clk 0:00:20]} 1-0

[Event "*** Titled Tuesday Blitz"]
[Site "Chess.com"]
[Date "2021.02.02"]
[Round "7"]
[White "gumimis"]
[Black "JiiHart"]
[Result "1-0"]
[WhiteElo "2325"]
[BlackElo "2117"]
[TimeControl "180+1"]
[EndTime "11:19:13 PST"]
[Termination "gumimis won by resignation"]

1. e4 {[%clk 0:02:53.6]} 1... e5 {[%clk 0:02:58.8]} 2. Nf3 {[%clk 0:02:53.7]}
2... Nc6 {[%clk 0:02:59.2]} 3. Bb5 {[%clk 0:02:54]} 3... a6 {[%clk 0:02:59.6]}
4. Ba4 {[%clk 0:02:54.1]} 4... Nf6 {[%clk 0:02:59.6]} 5. O-O {[%clk 0:02:54.3]}
5... Nxe4 {[%clk 0:03:00]} 6. Re1 {[%clk 0:02:52]} 6... Nc5 {[%clk 0:02:58.6]}
7. Nxe5 {[%clk 0:02:41.9]} 7... Be7 {[%clk 0:02:57.8]} 8. Bxc6 {[%clk
0:02:21.3]} 8... dxc6 {[%clk 0:02:57.1]} 9. d4 {[%clk 0:02:21.2]} 9... Ne6
{[%clk 0:02:56.5]} 10. c3 {[%clk 0:02:08.2]} 10... O-O {[%clk 0:02:56.2]} 11.
Be3 {[%clk 0:02:07.2]} 11... f6 {[%clk 0:02:11.1]} 12. Nf3 {[%clk 0:01:59.5]}
12... Kh8 {[%clk 0:02:08.7]} 13. Nbd2 {[%clk 0:01:57.2]} 13... Bd7 {[%clk
0:02:06.4]} 14. Qc2 {[%clk 0:01:50.2]} 14... Bd6 {[%clk 0:01:56.9]} 15. Re2
{[%clk 0:01:45.5]} 15... Nf4 {[%clk 0:01:49.1]} 16. Bxf4 {[%clk 0:01:43.9]}
16... Bxf4 {[%clk 0:01:50]} 17. Rae1 {[%clk 0:01:43.2]} 17... Re8 {[%clk
0:01:40]} 18. Rxe8+ {[%clk 0:01:41.2]} 18... Bxe8 {[%clk 0:01:40]} 19. Qe4
{[%clk 0:01:28]} 19... Bd6 {[%clk 0:01:31.8]} 20. Nc4 {[%clk 0:01:26.8]} 20...
Bg6 {[%clk 0:01:28.5]} 21. Qe6 {[%clk 0:01:23.2]} 21... Qe8 {[%clk 0:01:20.9]}
22. Nxd6 {[%clk 0:01:16.1]} 22... Qxe6 {[%clk 0:00:56.8]} 23. Rxe6 {[%clk
0:01:12.3]} 23... cxd6 {[%clk 0:00:56.9]} 24. Rxd6 {[%clk 0:01:13.2]} 24... Be4
{[%clk 0:00:37.9]} 25. Nd2 {[%clk 0:01:02.5]} 25... Bd5 {[%clk 0:00:34.9]} 26.
c4 {[%clk 0:01:01.1]} 26... Bg8 {[%clk 0:00:34.4]} 27. f3 {[%clk 0:00:54.4]}
27... Rb8 {[%clk 0:00:32.7]} 28. Kf2 {[%clk 0:00:49.8]} 28... h6 {[%clk
0:00:32.3]} 29. b3 {[%clk 0:00:44.9]} 29... Kh7 {[%clk 0:00:31.4]} 30. Ne4
{[%clk 0:00:43.6]} 30... Kg6 {[%clk 0:00:26.7]} 31. Rd7 {[%clk 0:00:42.7]} 31...
Be6 {[%clk 0:00:18.5]} 32. Re7 {[%clk 0:00:40.3]} 32... Bg8 {[%clk 0:00:15.6]}
33. Nc5 {[%clk 0:00:38.8]} 33... b5 {[%clk 0:00:13.9]} 34. Nxa6 {[%clk
0:00:35.2]} 34... Ra8 {[%clk 0:00:13.8]} 35. cxb5 {[%clk 0:00:35.2]} 35... cxb5
{[%clk 0:00:13.8]} 36. Nb4 {[%clk 0:00:34.8]} 36... Rc8 {[%clk 0:00:10.5]} 37.
d5 {[%clk 0:00:32.5]} 37... Rc1 {[%clk 0:00:10.2]} 38. d6 {[%clk 0:00:30.6]}
38... Rd1 {[%clk 0:00:09.6]} 39. d7 {[%clk 0:00:30]} 1-0